[Event "*** Titled Tuesday Blitz"]
[Site "Chess.com"]
[Date "2020.04.21"]
[Round "3"]
[White "Ginger_GM"]
[Black "DanielTitichoca"]
[Result "1/2-1/2"]
[WhiteElo "2580"]
[BlackElo "2318"]
[TimeControl "180+1"]
[EndTime "10:29:34 PDT"]
[Termination "Game drawn by repetition"]

1. e4 {[%clk 0:03:00.9]} 1... c5 {[%clk 0:02:59.9]} 2. Nf3 {[%clk 0:03:00]} 2...
d6 {[%clk 0:02:58.2]} 3. d4 {[%clk 0:02:59.5]} 3... cxd4 {[%clk 0:02:59.1]} 4.
Nxd4 {[%clk 0:02:59.1]} 4... Nf6 {[%clk 0:03:00]} 5. Nc3 {[%clk 0:02:57.5]} 5...
a6 {[%clk 0:03:00.7]} 6. Bc4 {[%clk 0:02:56.3]} 6... e6 {[%clk 0:03:00.4]} 7.
Bg5 {[%clk 0:02:55.3]} 7... Nbd7 {[%clk 0:02:59.3]} 8. f4 {[%clk 0:02:50.1]}
8... b5 {[%clk 0:02:57.8]} 9. Bxe6 {[%clk 0:02:46.3]} 9... fxe6 {[%clk 0:02:57]}
10. Nxe6 {[%clk 0:02:46.2]} 10... Qa5 {[%clk 0:02:55.2]} 11. O-O {[%clk
0:02:37.9]} 11... Bb7 {[%clk 0:02:27.2]} 12. Nd5 {[%clk 0:02:30.4]} 12... Rc8
{[%clk 0:02:11.5]} 13. Bxf6 {[%clk 0:01:45]} 13... Nxf6 {[%clk 0:02:06.4]} 14.
Nxf6+ {[%clk 0:01:23.1]} 14... gxf6 {[%clk 0:02:05.4]} 15. Nxf8 {[%clk
0:00:56.3]} 15... Qb6+ {[%clk 0:02:04.4]} 16. Kh1 {[%clk 0:00:56.1]} 16... Rxf8
{[%clk 0:02:05]} 17. Qh5+ {[%clk 0:00:54.1]} 17... Rf7 {[%clk 0:02:04.1]} 18.
Rae1 {[%clk 0:00:52]} 18... Rxc2 {[%clk 0:02:02]} 19. Rf3 {[%clk 0:00:43.3]}
19... Qd4 {[%clk 0:01:34]} 20. Rg3 {[%clk 0:00:30.7]} 20... Bxe4 {[%clk
0:01:34.3]} 21. h3 {[%clk 0:00:22.5]} 21... d5 {[%clk 0:01:26.5]} 22. Rg7 {[%clk
0:00:20.7]} 22... Rc7 {[%clk 0:01:08.1]} 23. Rg8+ {[%clk 0:00:20.2]} 23... Ke7
{[%clk 0:01:04.3]} 24. Qg4 {[%clk 0:00:20.2]} 24... f5 {[%clk 0:00:56.5]} 25.
Qh4+ {[%clk 0:00:18.6]} 25... Qf6 {[%clk 0:00:57]} 26. Qf2 {[%clk 0:00:18.7]}
26... Rg7 {[%clk 0:00:52.1]} 27. Rxg7+ {[%clk 0:00:15.2]} 27... Qxg7 {[%clk
0:00:52.6]} 28. Re2 {[%clk 0:00:14.5]} 28... Qh6 {[%clk 0:00:48.5]} 29. Kg1
{[%clk 0:00:11.4]} 29... Rc1+ {[%clk 0:00:47]} 30. Kh2 {[%clk 0:00:11.7]} 30...
Qc6 {[%clk 0:00:42.4]} 31. Qh4+ {[%clk 0:00:11.3]} 31... Qf6 {[%clk 0:00:42.2]}
32. Qxh7+ {[%clk 0:00:11.3]} 32... Ke6 {[%clk 0:00:40.7]} 33. Qg8+ {[%clk
0:00:10.9]} 33... Qf7 {[%clk 0:00:39.7]} 34. Qb8 {[%clk 0:00:08.8]} 34... Rc6
{[%clk 0:00:37.3]} 35. Qe5+ {[%clk 0:00:08.6]} 35... Kd7 {[%clk 0:00:36.9]} 36.
h4 {[%clk 0:00:08.9]} 36... Rh6 {[%clk 0:00:35.9]} 37. g3 {[%clk 0:00:08.7]}
37... Qh5 {[%clk 0:00:35.5]} 38. Re1 {[%clk 0:00:07.8]} 38... Qf3 {[%clk
0:00:35.3]} 39. Qg7+ {[%clk 0:00:05.5]} 39... Kd8 {[%clk 0:00:30.1]} 40. Qf8+
{[%clk 0:00:05.4]} 40... Kd7 {[%clk 0:00:30]} 41. Qf7+ {[%clk 0:00:05.9]} 41...
Kd6 {[%clk 0:00:24.7]} 42. Qf8+ {[%clk 0:00:06.1]} 42... Ke6 {[%clk 0:00:25.3]}
43. Qxh6+ {[%clk 0:00:05.4]} 43... Kf7 {[%clk 0:00:24.9]} 44. Qh7+ {[%clk
0:00:05.8]} 44... Kf6 {[%clk 0:00:25.4]} 45. Qh6+ {[%clk 0:00:06.1]} 45... Ke7
{[%clk 0:00:25.5]} 46. Qg7+ {[%clk 0:00:06.1]} 46... Kd6 {[%clk 0:00:24.1]} 47.
Qf6+ {[%clk 0:00:05.3]} 47... Kd7 {[%clk 0:00:24.6]} 48. Qf7+ {[%clk 0:00:05.5]}
48... Kd6 {[%clk 0:00:24.8]} 49. Qf8+ {[%clk 0:00:05.1]} 49... Ke6 {[%clk
0:00:24.5]} 50. Qc8+ {[%clk 0:00:04.5]} 50... Kf6 {[%clk 0:00:24.6]} 51. Qc6+
{[%clk 0:00:04.5]} 51... Kg7 {[%clk 0:00:24.1]} 52. Qd7+ {[%clk 0:00:04.8]}
52... Kg6 {[%clk 0:00:23.9]} 53. Qe6+ {[%clk 0:00:04.9]} 53... Kh5 {[%clk
0:00:22.2]} 54. Qf7+ {[%clk 0:00:04.9]} 54... Kh6 {[%clk 0:00:22.3]} 55. Qf6+
{[%clk 0:00:05.1]} 55... Kh7 {[%clk 0:00:21.3]} 56. Qf7+ {[%clk 0:00:05.4]}
56... Kh6 {[%clk 0:00:20.5]} 57. Qf6+ {[%clk 0:00:05.6]} 57... Kh7 {[%clk
0:00:21]} 58. Qe7+ {[%clk 0:00:05.6]} 58... Kh6 {[%clk 0:00:21.2]} 59. Qd6+
{[%clk 0:00:05.8]} 59... Kh7 {[%clk 0:00:21.3]} 60. Qe7+ {[%clk 0:00:05.6]}
60... Kh6 {[%clk 0:00:21.6]} 61. Qf6+ {[%clk 0:00:05.6]} 1/2-1/2

[Event "*** Titled Tuesday Blitz"]
[Site "Chess.com"]
[Date "2020.04.21"]
[Round "3"]
[White "qqwow"]
[Black "woodhy"]
[Result "1-0"]
[WhiteElo "2533"]
[BlackElo "2259"]
[TimeControl "180+1"]
[EndTime "10:29:37 PDT"]
[Termination "qqwow won by checkmate"]

1. d4 {[%clk 0:02:59.3]} 1... Nf6 {[%clk 0:02:40.8]} 2. Bg5 {[%clk 0:02:56.8]}
2... Ne4 {[%clk 0:02:40.4]} 3. Bf4 {[%clk 0:02:54.7]} 3... c5 {[%clk 0:02:40.7]}
4. f3 {[%clk 0:02:54.5]} 4... Nf6 {[%clk 0:02:39.5]} 5. d5 {[%clk 0:02:54]} 5...
d6 {[%clk 0:02:39.3]} 6. e4 {[%clk 0:02:53.3]} 6... g6 {[%clk 0:02:39.9]} 7. Nc3
{[%clk 0:02:52.5]} 7... Bg7 {[%clk 0:02:40.4]} 8. Qd2 {[%clk 0:02:53]} 8... O-O
{[%clk 0:02:40]} 9. h4 {[%clk 0:02:50]} 9... a6 {[%clk 0:02:40.1]} 10. h5 {[%clk
0:02:49.2]} 10... b5 {[%clk 0:02:38.1]} 11. hxg6 {[%clk 0:02:48.5]} 11... fxg6
{[%clk 0:02:37.9]} 12. Bh6 {[%clk 0:02:48.6]} 12... Rf7 {[%clk 0:02:30.6]} 13.
Nh3 {[%clk 0:02:43]} 13... Qf8 {[%clk 0:02:22.8]} 14. Bxg7 {[%clk 0:02:34.2]}
14... Rxg7 {[%clk 0:02:23.7]} 15. Ng5 {[%clk 0:02:32.5]} 15... Nh5 {[%clk
0:02:18.5]} 16. O-O-O {[%clk 0:02:24.2]} 16... Ng3 {[%clk 0:02:16]} 17. Rg1
{[%clk 0:02:23.4]} 17... Nxf1 {[%clk 0:02:13.9]} 18. Rgxf1 {[%clk 0:02:24.3]}
18... h6 {[%clk 0:02:11.9]} 19. Ne6 {[%clk 0:02:24.1]} 19... Bxe6 {[%clk
0:02:11]} 20. dxe6 {[%clk 0:02:25]} 20... g5 {[%clk 0:02:07.6]} 21. f4 {[%clk
0:02:24.1]} 21... g4 {[%clk 0:01:58.4]} 22. f5 {[%clk 0:02:21.7]} 22... Rg5
{[%clk 0:01:57.6]} 23. Nd5 {[%clk 0:02:21.1]} 23... Nc6 {[%clk 0:01:57.4]} 24.
f6 {[%clk 0:02:18]} 24... exf6 {[%clk 0:01:28.9]} 25. Rxf6 {[%clk 0:02:05.1]}
25... Qg7 {[%clk 0:01:27.7]} 26. Rdf1 {[%clk 0:02:02]} 26... Ne5 {[%clk
0:00:58.1]} 27. e7 {[%clk 0:01:45.4]} 27... Re8 {[%clk 0:00:38]} 28. Rf8+ {[%clk
0:01:41.4]} 28... Rxf8 {[%clk 0:00:27.4]} 29. exf8=Q+ {[%clk 0:01:38.3]} 29...
Qxf8 {[%clk 0:00:28.3]} 30. Rxf8+ {[%clk 0:01:38]} 30... Kxf8 {[%clk 0:00:29.2]}
31. Nf4 {[%clk 0:01:35.4]} 31... Ke7 {[%clk 0:00:27.8]} 32. Qd5 {[%clk
0:01:33.5]} 32... Nc4 {[%clk 0:00:27.4]} 33. Qe6+ {[%clk 0:01:30]} 33... Kd8
{[%clk 0:00:27.3]} 34. Qxh6 {[%clk 0:01:26.8]} 34... Re5 {[%clk 0:00:27.2]} 35.
Qf8+ {[%clk 0:01:25.4]} 35... Kd7 {[%clk 0:00:26.3]} 36. Qf7+ {[%clk 0:01:23]}
36... Kc6 {[%clk 0:00:22.9]} 37. b3 {[%clk 0:00:59.8]} 37... Nb6 {[%clk
0:00:19.6]} 38. Qg6 {[%clk 0:00:53.4]} 38... a5 {[%clk 0:00:17.5]} 39. Nd3
{[%clk 0:00:53]} 39... Re7 {[%clk 0:00:16.9]} 40. e5 {[%clk 0:00:52.7]} 40...
Nc8 {[%clk 0:00:16.4]} 41. e6 {[%clk 0:00:46.2]} 41... c4 {[%clk 0:00:15.1]} 42.
bxc4 {[%clk 0:00:45]} 42... bxc4 {[%clk 0:00:13.9]} 43. Nf4 {[%clk 0:00:45.5]}
43... d5 {[%clk 0:00:13.7]} 44. Qxg4 {[%clk 0:00:44.3]} 44... Nb6 {[%clk
0:00:13.3]} 45. Qg5 {[%clk 0:00:43.2]} 45... Kd6 {[%clk 0:00:14.2]} 46. g4
{[%clk 0:00:41.6]} 46... a4 {[%clk 0:00:14.4]} 47. Qf6 {[%clk 0:00:40.1]} 47...
a3 {[%clk 0:00:13.8]} 48. g5 {[%clk 0:00:39.9]} 48... Rh7 {[%clk 0:00:12.3]} 49.
e7+ {[%clk 0:00:30.7]} 49... Kc5 {[%clk 0:00:12.2]} 50. e8=Q {[%clk 0:00:20.6]}
50... Rh1+ {[%clk 0:00:10.3]} 51. Kd2 {[%clk 0:00:20.9]} 51... c3+ {[%clk
0:00:10.5]} 52. Ke2 {[%clk 0:00:19.2]} 52... Rh2+ {[%clk 0:00:09.9]} 53. Kf3
{[%clk 0:00:19.1]} 53... Rxc2 {[%clk 0:00:10.8]} 54. Qee7+ {[%clk 0:00:15.8]}
54... Kb5 {[%clk 0:00:09.5]} 55. Ne2 {[%clk 0:00:15.8]} 55... Nc4 {[%clk
0:00:07.6]} 56. Nd4+ {[%clk 0:00:15.1]} 56... Ka4 {[%clk 0:00:07.9]} 57. Nxc2
{[%clk 0:00:16]} 57... Nd2+ {[%clk 0:00:07.1]} 58. Ke2 {[%clk 0:00:15.1]} 58...
d4 {[%clk 0:00:06.9]} 59. Qb4# {[%clk 0:00:14.5]} 1-0

[Event "*** Titled Tuesday Blitz"]
[Site "Chess.com"]
[Date "2020.04.21"]
[Round "3"]
[White "whogeeyao"]
[Black "HrvojeZagreb"]
[Result "1-0"]
[WhiteElo "2359"]
[BlackElo "2129"]
[TimeControl "180+1"]
[EndTime "10:29:37 PDT"]
[Termination "whogeeyao won by checkmate"]

1. e4 {[%clk 0:03:00.1]} 1... e6 {[%clk 0:03:00.3]} 2. d4 {[%clk 0:02:59.8]}
2... d5 {[%clk 0:03:00.7]} 3. Nd2 {[%clk 0:03:00.7]} 3... dxe4 {[%clk 0:03:01]}
4. Nxe4 {[%clk 0:03:01.6]} 4... Nd7 {[%clk 0:03:01.4]} 5. Nf3 {[%clk 0:02:59.7]}
5... Ngf6 {[%clk 0:03:02.3]} 6. Bd3 {[%clk 0:02:56.7]} 6... b6 {[%clk
0:03:00.5]} 7. O-O {[%clk 0:02:54.3]} 7... Bb7 {[%clk 0:03:00.7]} 8. Qe2 {[%clk
0:02:55]} 8... Nxe4 {[%clk 0:02:51.7]} 9. Bxe4 {[%clk 0:02:55.9]} 9... Bxe4
{[%clk 0:02:51.9]} 10. Qxe4 {[%clk 0:02:56.8]} 10... Bd6 {[%clk 0:02:52.2]} 11.
Bg5 {[%clk 0:02:52.2]} 11... Qc8 {[%clk 0:02:52.3]} 12. d5 {[%clk 0:02:50.5]}
12... Nc5 {[%clk 0:02:51.6]} 13. Qe2 {[%clk 0:02:44.4]} 13... O-O {[%clk
0:02:48.9]} 14. b4 {[%clk 0:02:44.3]} 14... Na4 {[%clk 0:02:41]} 15. dxe6 {[%clk
0:02:42.9]} 15... Qxe6 {[%clk 0:02:39.9]} 16. Qxe6 {[%clk 0:02:41.8]} 16... fxe6
{[%clk 0:02:40.8]} 17. a3 {[%clk 0:02:41.3]} 17... a5 {[%clk 0:02:30.1]} 18.
Rab1 {[%clk 0:02:35.4]} 18... Rf5 {[%clk 0:02:13.7]} 19. Be3 {[%clk 0:02:28.9]}
19... Nc3 {[%clk 0:02:09.3]} 20. Rb3 {[%clk 0:02:26.5]} 20... axb4 {[%clk
0:02:08]} 21. axb4 {[%clk 0:02:25]} 21... Nd5 {[%clk 0:02:08.1]} 22. Bd2 {[%clk
0:02:18.6]} 22... Ra2 {[%clk 0:02:01.5]} 23. c4 {[%clk 0:02:12.9]} 23... Nf6
{[%clk 0:01:38.5]} 24. Be3 {[%clk 0:02:01.2]} 24... Ng4 {[%clk 0:01:32.1]} 25.
Bc1 {[%clk 0:01:49.3]} 25... e5 {[%clk 0:01:07.2]} 26. h3 {[%clk 0:01:44.6]}
26... Nf6 {[%clk 0:01:05.7]} 27. Be3 {[%clk 0:01:43.4]} 27... Rc2 {[%clk
0:00:46.4]} 28. Rc1 {[%clk 0:01:33.8]} 28... Rxc1+ {[%clk 0:00:44.8]} 29. Bxc1
{[%clk 0:01:34.7]} 29... c5 {[%clk 0:00:33.2]} 30. Be3 {[%clk 0:01:28.8]} 30...
e4 {[%clk 0:00:31.7]} 31. bxc5 {[%clk 0:01:12.2]} 31... Bxc5 {[%clk 0:00:28.5]}
32. Nd4 {[%clk 0:01:10.1]} 32... Re5 {[%clk 0:00:26.3]} 33. Nc6 {[%clk
0:00:54.9]} 33... Re8 {[%clk 0:00:26]} 34. Bxc5 {[%clk 0:00:44.9]} 34... bxc5
{[%clk 0:00:26.9]} 35. Rb5 {[%clk 0:00:45]} 35... e3 {[%clk 0:00:26]} 36. fxe3
{[%clk 0:00:44.2]} 36... Rxe3 {[%clk 0:00:26.9]} 37. Rxc5 {[%clk 0:00:43.8]}
37... Rc3 {[%clk 0:00:26.6]} 38. Ne5 {[%clk 0:00:41.9]} 38... h6 {[%clk
0:00:24.8]} 39. Rc8+ {[%clk 0:00:39.5]} 39... Kh7 {[%clk 0:00:24.4]} 40. Rc7
{[%clk 0:00:40]} 40... Ne4 {[%clk 0:00:18.3]} 41. Nf3 {[%clk 0:00:34.1]} 41...
h5 {[%clk 0:00:04.1]} 42. Re7 {[%clk 0:00:27.7]} 42... Rxc4 {[%clk 0:00:03.5]}
43. Rxe4 {[%clk 0:00:27.5]} 43... Rxe4 {[%clk 0:00:02.9]} 44. Ng5+ {[%clk
0:00:27.9]} 44... Kg6 {[%clk 0:00:03.8]} 45. Nxe4 {[%clk 0:00:28.7]} 45... Kf5
{[%clk 0:00:04.3]} 46. Ng3+ {[%clk 0:00:26.1]} 46... Kg5 {[%clk 0:00:04.4]} 47.
Kf2 {[%clk 0:00:26.4]} 47... g6 {[%clk 0:00:03.4]} 48. Kf3 {[%clk 0:00:26.2]}
48... Kh6 {[%clk 0:00:03.4]} 49. Kf4 {[%clk 0:00:25.9]} 49... Kg7 {[%clk
0:00:03.6]} 50. Kg5 {[%clk 0:00:26]} 50... Kh7 {[%clk 0:00:03.9]} 51. Ne4 {[%clk
0:00:26.4]} 51... Kg7 {[%clk 0:00:04.2]} 52. Nf6 {[%clk 0:00:26.8]} 52... Kf7
{[%clk 0:00:04.3]} 53. Ne4 {[%clk 0:00:22.8]} 53... Kg7 {[%clk 0:00:04.4]} 54.
h4 {[%clk 0:00:23.2]} 54... Kf7 {[%clk 0:00:04.3]} 55. Kh6 {[%clk 0:00:23.6]}
55... Ke6 {[%clk 0:00:02.2]} 56. Kxg6 {[%clk 0:00:23.8]} 56... Ke7 {[%clk
0:00:02]} 57. Kxh5 {[%clk 0:00:23.1]} 57... Kf8 {[%clk 0:00:02.9]} 58. Kg6
{[%clk 0:00:23.3]} 58... Kg8 {[%clk 0:00:03.8]} 59. Kf6 {[%clk 0:00:23.1]} 59...
Kh8 {[%clk 0:00:04.7]} 60. g4 {[%clk 0:00:23.1]} 60... Kh7 {[%clk 0:00:05.5]}
61. g5 {[%clk 0:00:23.4]} 61... Kh8 {[%clk 0:00:06.4]} 62. g6 {[%clk 0:00:23.4]}
62... Kg8 {[%clk 0:00:06.5]} 63. g7 {[%clk 0:00:24]} 63... Kh7 {[%clk
0:00:06.1]} 64. Kf7 {[%clk 0:00:24.3]} 64... Kh6 {[%clk 0:00:07]} 65. g8=Q
{[%clk 0:00:23.1]} 65... Kh5 {[%clk 0:00:07.1]} 66. Qg5# {[%clk 0:00:23.3]} 1-0

[Event "*** Titled Tuesday Blitz"]
[Site "Chess.com"]
[Date "2020.04.21"]
[Round "3"]
[White "cottage_cheese"]
[Black "NZT72"]
[Result "1/2-1/2"]
[WhiteElo "2229"]
[BlackElo "2447"]
[TimeControl "180+1"]
[EndTime "10:29:38 PDT"]
[Termination "Game drawn by repetition"]

1. e4 {[%clk 0:03:00.9]} 1... e5 {[%clk 0:02:59.6]} 2. Nf3 {[%clk 0:03:01.1]}
2... Nc6 {[%clk 0:02:59.4]} 3. Bb5 {[%clk 0:02:58.8]} 3... Nf6 {[%clk
0:02:58.8]} 4. O-O {[%clk 0:02:57.9]} 4... Nxe4 {[%clk 0:02:58.6]} 5. Re1 {[%clk
0:02:54.1]} 5... Nd6 {[%clk 0:02:58.1]} 6. Bxc6 {[%clk 0:02:51.7]} 6... dxc6
{[%clk 0:02:57.6]} 7. Nxe5 {[%clk 0:02:51.9]} 7... Be7 {[%clk 0:02:57.7]} 8. Nc3
{[%clk 0:02:39.5]} 8... O-O {[%clk 0:02:57.3]} 9. b3 {[%clk 0:02:36.3]} 9... Nf5
{[%clk 0:02:53.3]} 10. Bb2 {[%clk 0:02:30.2]} 10... Be6 {[%clk 0:02:20]} 11. d3
{[%clk 0:01:58]} 11... Re8 {[%clk 0:02:16.6]} 12. Qd2 {[%clk 0:01:55.4]} 12...
Bg5 {[%clk 0:02:08.9]} 13. Qd1 {[%clk 0:01:44.8]} 13... Be7 {[%clk 0:01:35.6]}
14. Ne4 {[%clk 0:01:36.9]} 14... Bb4 {[%clk 0:01:35.4]} 15. Rf1 {[%clk 0:01:22]}
15... Bf8 {[%clk 0:01:34.4]} 16. Qd2 {[%clk 0:01:18]} 16... Bd5 {[%clk
0:01:17.1]} 17. Rae1 {[%clk 0:01:08.1]} 17... f6 {[%clk 0:01:07.7]} 18. Qf4
{[%clk 0:00:23.7]} 18... Nd6 {[%clk 0:01:01.5]} 19. Nf3 {[%clk 0:00:06.9]} 19...
Nxe4 {[%clk 0:00:17.9]} 20. dxe4 {[%clk 0:00:07.8]} 20... Bf7 {[%clk 0:00:18.4]}
21. c4 {[%clk 0:00:07.5]} 21... Bd6 {[%clk 0:00:17.5]} 22. Qd2 {[%clk
0:00:06.7]} 22... a5 {[%clk 0:00:13.5]} 23. Qc2 {[%clk 0:00:06.2]} 23... Bc5
{[%clk 0:00:10]} 24. Nh4 {[%clk 0:00:05.3]} 24... Qd7 {[%clk 0:00:09.2]} 25. Nf5
{[%clk 0:00:05.3]} 25... Bg6 {[%clk 0:00:09.2]} 26. Rd1 {[%clk 0:00:05.7]} 26...
Qe6 {[%clk 0:00:08.9]} 27. Ng3 {[%clk 0:00:03.1]} 27... Bxe4 {[%clk 0:00:07.6]}
28. Nxe4 {[%clk 0:00:04]} 28... Qxe4 {[%clk 0:00:07.8]} 29. Qxe4 {[%clk
0:00:04.8]} 29... Rxe4 {[%clk 0:00:08.7]} 30. Rfe1 {[%clk 0:00:05.5]} 30...
Rxe1+ {[%clk 0:00:08.3]} 31. Rxe1 {[%clk 0:00:05]} 31... Kf7 {[%clk 0:00:08.5]}
32. Kf1 {[%clk 0:00:05.2]} 32... Re8 {[%clk 0:00:07.9]} 33. Rxe8 {[%clk
0:00:04.7]} 33... Kxe8 {[%clk 0:00:08.8]} 34. f3 {[%clk 0:00:04.9]} 34... Kf7
{[%clk 0:00:08.9]} 35. Ke2 {[%clk 0:00:05.4]} 35... Ke6 {[%clk 0:00:09.1]} 36.
h3 {[%clk 0:00:06]} 36... b5 {[%clk 0:00:08.5]} 37. Bc1 {[%clk 0:00:06.1]} 37...
Bb4 {[%clk 0:00:07.3]} 38. Be3 {[%clk 0:00:06.2]} 38... Bd6 {[%clk 0:00:05.1]}
39. g4 {[%clk 0:00:06.6]} 39... bxc4 {[%clk 0:00:04.6]} 40. bxc4 {[%clk
0:00:06.1]} 40... f5 {[%clk 0:00:05]} 41. Kd3 {[%clk 0:00:07]} 41... g6 {[%clk
0:00:05]} 42. Ke2 {[%clk 0:00:06.7]} 42... c5 {[%clk 0:00:05.1]} 43. Kd3 {[%clk
0:00:06.4]} 43... c6 {[%clk 0:00:05.2]} 44. a4 {[%clk 0:00:06.4]} 44... Kf6
{[%clk 0:00:04.3]} 45. Bd2 {[%clk 0:00:06.1]} 45... Bc7 {[%clk 0:00:03.4]} 46.
Bc3+ {[%clk 0:00:06.3]} 46... Ke6 {[%clk 0:00:03.4]} 47. Ke3 {[%clk 0:00:04.5]}
47... h5 {[%clk 0:00:03]} 48. gxh5 {[%clk 0:00:03.7]} 48... gxh5 {[%clk
0:00:03.9]} 49. Ke2 {[%clk 0:00:03.5]} 49... Bd8 {[%clk 0:00:04.2]} 50. Kf2
{[%clk 0:00:02.8]} 50... Bc7 {[%clk 0:00:04.4]} 51. Ke3 {[%clk 0:00:02.8]} 51...
Bd8 {[%clk 0:00:03.8]} 52. Ke2 {[%clk 0:00:03.3]} 52... Bc7 {[%clk 0:00:04.1]}
53. Ke3 {[%clk 0:00:03.9]} 53... Bd8 {[%clk 0:00:04.2]} 54. Ke2 {[%clk
0:00:04.5]} 54... Bc7 {[%clk 0:00:04.7]} 55. Ke3 {[%clk 0:00:05.1]} 1/2-1/2

[Event "*** Titled Tuesday Blitz"]
[Site "Chess.com"]
[Date "2020.04.21"]
[Round "3"]
[White "Gubajdullin"]
[Black "wannabe2700"]
[Result "0-1"]
[WhiteElo "2424"]
[BlackElo "2676"]
[TimeControl "180+1"]
[EndTime "10:29:39 PDT"]
[Termination "wannabe2700 won by checkmate"]

1. d4 {[%clk 0:03:00.9]} 1... f5 {[%clk 0:02:28.5]} 2. Bf4 {[%clk 0:02:49.6]}
2... Nf6 {[%clk 0:02:28.5]} 3. e3 {[%clk 0:02:42.9]} 3... e6 {[%clk 0:02:28.1]}
4. Nf3 {[%clk 0:02:41.6]} 4... d6 {[%clk 0:02:28.1]} 5. Be2 {[%clk 0:02:30.2]}
5... Be7 {[%clk 0:02:27]} 6. O-O {[%clk 0:02:29.1]} 6... O-O {[%clk 0:02:20.1]}
7. h3 {[%clk 0:02:26.4]} 7... Ne4 {[%clk 0:02:15.7]} 8. c4 {[%clk 0:02:24.8]}
8... Nd7 {[%clk 0:02:13.3]} 9. Nc3 {[%clk 0:02:22.3]} 9... Nxc3 {[%clk
0:02:12.6]} 10. bxc3 {[%clk 0:02:20.6]} 10... c5 {[%clk 0:02:10]} 11. a4 {[%clk
0:02:09.1]} 11... a5 {[%clk 0:01:59.8]} 12. Rb1 {[%clk 0:02:04.8]} 12... b6
{[%clk 0:01:58.7]} 13. Ne1 {[%clk 0:01:58.3]} 13... Bb7 {[%clk 0:01:58]} 14. Nc2
{[%clk 0:01:57]} 14... Bc6 {[%clk 0:01:54.3]} 15. Na3 {[%clk 0:01:55]} 15... Nf6
{[%clk 0:01:50.8]} 16. Nb5 {[%clk 0:01:52]} 16... Ne4 {[%clk 0:01:49.2]} 17. Qc2
{[%clk 0:01:49.5]} 17... g5 {[%clk 0:01:40.7]} 18. Bh2 {[%clk 0:01:47.9]} 18...
Qd7 {[%clk 0:01:12.2]} 19. Rbd1 {[%clk 0:01:45.1]} 19... Rad8 {[%clk 0:00:49.3]}
20. f3 {[%clk 0:01:40.9]} 20... Bxb5 {[%clk 0:00:44.9]} 21. axb5 {[%clk
0:01:26.1]} 21... Nf6 {[%clk 0:00:44.9]} 22. dxc5 {[%clk 0:01:23.9]} 22... bxc5
{[%clk 0:00:44.6]} 23. Ra1 {[%clk 0:01:16.8]} 23... Qc7 {[%clk 0:00:44.2]} 24.
Ra2 {[%clk 0:01:11.5]} 24... Nd7 {[%clk 0:00:43.6]} 25. Rfa1 {[%clk 0:01:08.7]}
25... Ra8 {[%clk 0:00:44]} 26. f4 {[%clk 0:00:58.9]} 26... Ra7 {[%clk
0:00:35.1]} 27. Bf3 {[%clk 0:00:57.6]} 27... Nb6 {[%clk 0:00:25.7]} 28. Qe2
{[%clk 0:00:47.2]} 28... a4 {[%clk 0:00:25.7]} 29. e4 {[%clk 0:00:42]} 29... Bf6
{[%clk 0:00:19.5]} 30. exf5 {[%clk 0:00:38.4]} 30... Bxc3 {[%clk 0:00:17.6]} 31.
Qxe6+ {[%clk 0:00:34.3]} 31... Qf7 {[%clk 0:00:17.8]} 32. Rc1 {[%clk 0:00:32]}
32... Bd4+ {[%clk 0:00:17.5]} 33. Kh1 {[%clk 0:00:29.5]} 33... Qxe6 {[%clk
0:00:18.4]} 34. fxe6 {[%clk 0:00:28]} 34... gxf4 {[%clk 0:00:19.3]} 35. Bh5
{[%clk 0:00:19.6]} 35... Re7 {[%clk 0:00:18.8]} 36. Bf7+ {[%clk 0:00:17.4]}
36... Rfxf7 {[%clk 0:00:19.3]} 37. Rf1 {[%clk 0:00:16.9]} 37... Rxe6 {[%clk
0:00:18.2]} 38. Bxf4 {[%clk 0:00:14.9]} 38... Be5 {[%clk 0:00:16.9]} 39. g3
{[%clk 0:00:14.9]} 39... Ref6 {[%clk 0:00:17.3]} 40. Kg2 {[%clk 0:00:13]} 40...
Bxf4 {[%clk 0:00:17.7]} 41. gxf4 {[%clk 0:00:12.5]} 41... Rxf4 {[%clk
0:00:18.6]} 42. Rg1 {[%clk 0:00:12]} 42... Rg7+ {[%clk 0:00:18.3]} 43. Kh1
{[%clk 0:00:12]} 43... Rxg1+ {[%clk 0:00:19.2]} 44. Kxg1 {[%clk 0:00:11.8]}
44... Rxc4 {[%clk 0:00:20.1]} 45. Kg2 {[%clk 0:00:11.8]} 45... Rb4 {[%clk
0:00:20.5]} 46. Kf3 {[%clk 0:00:10.3]} 46... Rxb5 {[%clk 0:00:20.8]} 47. Rg2+
{[%clk 0:00:09.5]} 47... Kf7 {[%clk 0:00:20.7]} 48. Ke4 {[%clk 0:00:09.7]} 48...
a3 {[%clk 0:00:21]} 49. Kf5 {[%clk 0:00:09.6]} 49... Ra5 {[%clk 0:00:20]} 50.
Rf2 {[%clk 0:00:07.7]} 50... a2 {[%clk 0:00:20]} 51. Ke4+ {[%clk 0:00:07.5]}
51... Ke7 {[%clk 0:00:20.3]} 52. Rf1 {[%clk 0:00:07.4]} 52... a1=Q {[%clk
0:00:20.6]} 53. Rxa1 {[%clk 0:00:06.6]} 53... Rxa1 {[%clk 0:00:21.5]} 54. Kf5
{[%clk 0:00:05.8]} 54... Rf1+ {[%clk 0:00:20.4]} 55. Kg5 {[%clk 0:00:05.6]}
55... c4 {[%clk 0:00:21.3]} 56. Kh6 {[%clk 0:00:05.6]} 56... c3 {[%clk
0:00:22.2]} 57. Kxh7 {[%clk 0:00:05]} 57... Rg1 {[%clk 0:00:23.1]} 58. h4 {[%clk
0:00:05]} 58... c2 {[%clk 0:00:24]} 59. h5 {[%clk 0:00:05.1]} 59... c1=Q {[%clk
0:00:24.9]} 60. h6 {[%clk 0:00:05.2]} 60... Nd5 {[%clk 0:00:24.4]} 61. Kh8
{[%clk 0:00:04]} 61... Qxh6# {[%clk 0:00:25.3]} 0-1